[Event "*** Titled Tuesday 3|2 Blitz"]
[Site "Chess.com"]
[Date "2017.06.06"]
[Round "2"]
[White "Wolverine_master"]
[Black "1lec"]
[Result "1-0"]
[WhiteElo "1988"]
[BlackElo "2018"]
[TimeControl "180+2"]
[EndTime "14:12:09 PDT"]
[Termination "Wolverine_master won on time"]

1. Nf3 {[%clk 0:03:02]} 1... c5 {[%clk 0:03:00.6]} 2. c4 {[%clk 0:02:59.5]} 2...
Nc6 {[%clk 0:03:01.2]} 3. Nc3 {[%clk 0:03:01.1]} 3... g6 {[%clk 0:03:00.9]} 4.
g3 {[%clk 0:03:02.6]} 4... Bg7 {[%clk 0:03:01.9]} 5. Bg2 {[%clk 0:03:04.3]} 5...
e6 {[%clk 0:03:03.5]} 6. O-O {[%clk 0:03:05.8]} 6... Nge7 {[%clk 0:03:05.1]} 7.
d3 {[%clk 0:03:02.1]} 7... O-O {[%clk 0:03:03.8]} 8. Bg5 {[%clk 0:03:03.5]} 8...
h6 {[%clk 0:03:03.3]} 9. Bxe7 {[%clk 0:03:04.5]} 9... Qxe7 {[%clk 0:02:50]} 10.
e3 {[%clk 0:03:04.3]} 10... b6 {[%clk 0:02:48]} 11. d4 {[%clk 0:03:05.2]} 11...
cxd4 {[%clk 0:02:37]} 12. Nxd4 {[%clk 0:03:06]} 12... Bb7 {[%clk 0:02:37.8]} 13.
Rc1 {[%clk 0:03:03.4]} 13... Rfd8 {[%clk 0:02:35.4]} 14. Ndb5 {[%clk 0:02:50.1]}
14... Be5 {[%clk 0:02:16]} 15. f4 {[%clk 0:01:55.9]} 15... Bb8 {[%clk
0:02:16.1]} 16. e4 {[%clk 0:01:57.2]} 16... a6 {[%clk 0:02:15.2]} 17. Nd4 {[%clk
0:01:56.4]} 17... Qc5 {[%clk 0:02:02.7]} 18. Ne2 {[%clk 0:01:53.5]} 18... e5
{[%clk 0:01:33.4]} 19. fxe5 {[%clk 0:01:48.1]} 19... Bxe5 {[%clk 0:01:32.5]} 20.
b4 {[%clk 0:01:44.4]} 20... Bxd4+ {[%clk 0:01:24.2]} 21. Kh1 {[%clk 0:01:42.5]}
21... Qe5 {[%clk 0:01:12.3]} 22. b5 {[%clk 0:01:37.3]} 22... axb5 {[%clk
0:01:01.1]} 23. cxb5 {[%clk 0:01:38.5]} 23... Rxa2 {[%clk 0:01:02]} 24. bxc6
{[%clk 0:01:35.3]} 24... Bxc6 {[%clk 0:00:57.2]} 25. Qxd4 {[%clk 0:01:26.2]}
25... Qxd4 {[%clk 0:00:27.8]} 26. Nxd4 {[%clk 0:01:26.7]} 26... Ba4 {[%clk
0:00:22.4]} 27. Ra1 {[%clk 0:01:25.8]} 27... Rxa1 {[%clk 0:00:21.6]} 28. Rxa1
{[%clk 0:01:27.7]} 28... b5 {[%clk 0:00:21.5]} 29. Bf1 {[%clk 0:01:28.8]} 29...
Rb8 {[%clk 0:00:21.2]} 30. Rb1 {[%clk 0:01:29.8]} 30... Kg7 {[%clk 0:00:17.7]}
31. Bxb5 {[%clk 0:01:29.8]} 31... Bxb5 {[%clk 0:00:18.4]} 32. Rxb5 {[%clk
0:01:30.5]} 32... Re8 {[%clk 0:00:19.6]} 33. e5 {[%clk 0:01:30.1]} 33... h5
{[%clk 0:00:18.9]} 34. Kg2 {[%clk 0:01:30.9]} 34... Re7 {[%clk 0:00:14.4]} 35.
Kf3 {[%clk 0:01:31.9]} 35... Re8 {[%clk 0:00:13.8]} 36. h4 {[%clk 0:01:32.7]}
36... Ra8 {[%clk 0:00:14.2]} 37. Rb7 {[%clk 0:01:27.8]} 37... Ra3+ {[%clk
0:00:14.3]} 38. Kf4 {[%clk 0:01:27.2]} 38... Rd3 {[%clk 0:00:14.6]} 39. Nf3
{[%clk 0:01:26.3]} 39... Rd5 {[%clk 0:00:13.5]} 40. Ke4 {[%clk 0:01:26.9]} 40...
Rd1 {[%clk 0:00:14.4]} 41. Nd4 {[%clk 0:01:26.9]} 41... Re1+ {[%clk 0:00:15.3]}
42. Kd5 {[%clk 0:01:27.8]} 42... Rg1 {[%clk 0:00:16.4]} 43. Rxd7 {[%clk
0:01:28.8]} 43... Rxg3 {[%clk 0:00:17]} 44. e6 {[%clk 0:01:30.2]} 44... Kf8
{[%clk 0:00:05.4]} 45. Rxf7+ {[%clk 0:01:29.4]} 45... Ke8 {[%clk 0:00:05.8]} 46.
Ra7 {[%clk 0:01:26.3]} 46... Rg4 {[%clk 0:00:05.6]} 47. Ke5 {[%clk 0:01:24.2]}
47... Rxh4 {[%clk 0:00:05.1]} 48. Nc6 {[%clk 0:01:25.5]} 48... Rh1 {[%clk
0:00:02.6]} 49. Kf6 {[%clk 0:01:23.6]} 49... Rf1+ {[%clk 0:00:02.1]} 50. Kxg6
{[%clk 0:01:24.9]} 1-0

[Event "*** Titled Tuesday 3|2 Blitz"]
[Site "Chess.com"]
[Date "2017.06.06"]
[Round "2"]
[White "jeaston1"]
[Black "silverback96"]
[Result "1-0"]
[WhiteElo "2144"]
[BlackElo "2105"]
[TimeControl "180+2"]
[EndTime "14:12:11 PDT"]
[Termination "jeaston1 won by checkmate"]

1. d4 {[%clk 0:03:02]} 1... Nf6 {[%clk 0:03:00.7]} 2. c4 {[%clk 0:03:00.5]} 2...
c5 {[%clk 0:03:01.7]} 3. d5 {[%clk 0:03:01.3]} 3... e6 {[%clk 0:03:02.9]} 4. Nc3
{[%clk 0:03:01.9]} 4... exd5 {[%clk 0:03:04.5]} 5. cxd5 {[%clk 0:03:03.8]} 5...
d6 {[%clk 0:03:06.1]} 6. e4 {[%clk 0:03:05.3]} 6... g6 {[%clk 0:03:07.5]} 7. f4
{[%clk 0:03:06.4]} 7... Bg7 {[%clk 0:03:09]} 8. Bb5+ {[%clk 0:03:07.3]} 8...
Nfd7 {[%clk 0:03:09.1]} 9. Nf3 {[%clk 0:03:08.4]} 9... a6 {[%clk 0:03:09.5]} 10.
Bd3 {[%clk 0:03:08.1]} 10... b5 {[%clk 0:03:11]} 11. O-O {[%clk 0:03:07.1]}
11... O-O {[%clk 0:03:11.8]} 12. Qe1 {[%clk 0:03:05.3]} 12... Nb6 {[%clk
0:02:57.3]} 13. Qg3 {[%clk 0:02:59.6]} 13... b4 {[%clk 0:02:53.3]} 14. Nd1
{[%clk 0:02:49.4]} 14... c4 {[%clk 0:02:53]} 15. Bc2 {[%clk 0:02:48.9]} 15... a5
{[%clk 0:02:49]} 16. f5 {[%clk 0:02:46.7]} 16... a4 {[%clk 0:02:12]} 17. Bf4
{[%clk 0:02:26.9]} 17... b3 {[%clk 0:02:09.2]} 18. axb3 {[%clk 0:02:27.5]} 18...
cxb3 {[%clk 0:01:50.9]} 19. Bd3 {[%clk 0:02:21.6]} 19... a3 {[%clk 0:01:31.6]}
20. Bxd6 {[%clk 0:01:28.8]} 20... axb2 {[%clk 0:01:22.5]} 21. Rxa8 {[%clk
0:01:28]} 21... Nxa8 {[%clk 0:01:13.2]} 22. Ng5 {[%clk 0:00:40.8]} 22... Ba6
{[%clk 0:01:09.3]} 23. Bxf8 {[%clk 0:00:33.3]} 23... Bxd3 {[%clk 0:00:53.4]} 24.
Qxd3 {[%clk 0:00:31.7]} 24... Bd4+ {[%clk 0:00:38.5]} 25. Qxd4 {[%clk
0:00:27.4]} 25... Kxf8 {[%clk 0:00:34]} 26. Qh8+ {[%clk 0:00:22]} 26... Ke7
{[%clk 0:00:34.7]} 27. f6+ {[%clk 0:00:21.5]} 27... Kd7 {[%clk 0:00:34.5]} 28.
Qxd8+ {[%clk 0:00:22.4]} 28... Kxd8 {[%clk 0:00:36.4]} 29. Nxf7+ {[%clk
0:00:23.2]} 29... Ke8 {[%clk 0:00:37.7]} 30. Nd6+ {[%clk 0:00:24.1]} 30... Kd7
{[%clk 0:00:39.1]} 31. Nxb2 {[%clk 0:00:25.4]} 31... Kxd6 {[%clk 0:00:39.6]} 32.
Nc4+ {[%clk 0:00:26.4]} 32... Kc5 {[%clk 0:00:40.4]} 33. f7 {[%clk 0:00:27]}
33... Nd7 {[%clk 0:00:40.6]} 34. e5 {[%clk 0:00:28.3]} 34... Kxc4 {[%clk
0:00:41.6]} 35. e6 {[%clk 0:00:29.5]} 35... Nab6 {[%clk 0:00:40.4]} 36. e7
{[%clk 0:00:27]} 36... b2 {[%clk 0:00:38.8]} 37. e8=Q {[%clk 0:00:27.5]} 37...
Kb3 {[%clk 0:00:40.7]} 38. f8=Q {[%clk 0:00:26.6]} 38... Ka2 {[%clk 0:00:41]}
39. Qd6 {[%clk 0:00:24.8]} 39... b1=Q {[%clk 0:00:41.4]} 40. Rxb1 {[%clk
0:00:24.3]} 40... Kxb1 {[%clk 0:00:43.3]} 41. Qexd7 {[%clk 0:00:25.7]} 41...
Nxd7 {[%clk 0:00:44.3]} 42. Qxd7 {[%clk 0:00:27.6]} 42... g5 {[%clk 0:00:46.2]}
43. Qxh7+ {[%clk 0:00:29.1]} 43... Kc1 {[%clk 0:00:46.5]} 44. Qh5 {[%clk
0:00:31]} 44... Kd2 {[%clk 0:00:48.4]} 45. Qg4 {[%clk 0:00:32.9]} 45... Ke3
{[%clk 0:00:49.2]} 46. d6 {[%clk 0:00:34.4]} 46... Kd2 {[%clk 0:00:50.9]} 47. d7
{[%clk 0:00:35]} 47... Ke1 {[%clk 0:00:52.8]} 48. Qxg5 {[%clk 0:00:34.4]} 48...
Ke2 {[%clk 0:00:53.8]} 49. d8=Q {[%clk 0:00:35.3]} 49... Ke1 {[%clk 0:00:55.7]}
50. Qdd2# {[%clk 0:00:36.6]} 1-0

[Event "*** Titled Tuesday 3|2 Blitz"]
[Site "Chess.com"]
[Date "2017.06.06"]
[Round "2"]
[White "Jadeit90"]
[Black "TamNguyen2"]
[Result "1-0"]
[WhiteElo "2154"]
[BlackElo "2110"]
[TimeControl "180+2"]
[EndTime "14:12:12 PDT"]
[Termination "Jadeit90 won by checkmate"]

1. g3 {[%clk 0:03:02]} 1... g6 {[%clk 0:02:59.2]} 2. Bg2 {[%clk 0:03:02.3]} 2...
Bg7 {[%clk 0:03:00.7]} 3. Nf3 {[%clk 0:03:03.2]} 3... Nf6 {[%clk 0:03:01.5]} 4.
O-O {[%clk 0:03:04.3]} 4... O-O {[%clk 0:03:02.4]} 5. c4 {[%clk 0:03:04.2]} 5...
c5 {[%clk 0:03:03.3]} 6. d4 {[%clk 0:03:04.7]} 6... Na6 {[%clk 0:03:03.1]} 7.
Nc3 {[%clk 0:03:05]} 7... d6 {[%clk 0:03:02.6]} 8. d5 {[%clk 0:03:06.2]} 8... e6
{[%clk 0:02:55.8]} 9. e4 {[%clk 0:03:06.1]} 9... exd5 {[%clk 0:02:53.8]} 10.
cxd5 {[%clk 0:03:07]} 10... Re8 {[%clk 0:02:55.3]} 11. Nd2 {[%clk 0:03:07.1]}
11... Ng4 {[%clk 0:02:47.1]} 12. h3 {[%clk 0:03:05.1]} 12... Ne5 {[%clk
0:02:46.6]} 13. f4 {[%clk 0:03:06]} 13... Nd7 {[%clk 0:02:46.8]} 14. Nc4 {[%clk
0:03:07.1]} 14... Nb6 {[%clk 0:02:45.4]} 15. Nxb6 {[%clk 0:03:01]} 15... Qxb6
{[%clk 0:02:45.5]} 16. Kh2 {[%clk 0:03:02.9]} 16... Bd7 {[%clk 0:02:39.7]} 17.
a3 {[%clk 0:02:59.6]} 17... c4 {[%clk 0:02:39.8]} 18. Qe2 {[%clk 0:02:58.4]}
18... Nc5 {[%clk 0:02:35.8]} 19. Be3 {[%clk 0:02:59.2]} 19... Qc7 {[%clk
0:02:32.7]} 20. Qxc4 {[%clk 0:02:57.8]} 20... Rac8 {[%clk 0:02:30]} 21. Rac1
{[%clk 0:02:56.2]} 21... Bxc3 {[%clk 0:02:26.3]} 22. Rxc3 {[%clk 0:02:56.6]}
22... b5 {[%clk 0:02:25.5]} 23. Qd4 {[%clk 0:02:55]} 23... Qb6 {[%clk
0:02:17.6]} 24. f5 {[%clk 0:02:55.4]} 24... Nxe4 {[%clk 0:02:15.4]} 25. Rxc8
{[%clk 0:02:47.1]} 25... Bxc8 {[%clk 0:02:14.2]} 26. Qxb6 {[%clk 0:02:46.4]}
26... axb6 {[%clk 0:02:16.1]} 27. fxg6 {[%clk 0:02:47.5]} 27... hxg6 {[%clk
0:02:12.8]} 28. Bxb6 {[%clk 0:02:48.5]} 28... Nd2 {[%clk 0:02:09.3]} 29. Rf6
{[%clk 0:02:48.4]} 29... Nc4 {[%clk 0:02:05.3]} 30. Bd4 {[%clk 0:02:48.5]} 30...
Re2 {[%clk 0:02:05]} 31. b3 {[%clk 0:02:47.5]} 31... Nxa3 {[%clk 0:01:55.7]} 32.
Rxd6 {[%clk 0:02:38.3]} 32... Re8 {[%clk 0:01:51.8]} 33. Bf6 {[%clk 0:02:28.1]}
33... Nc2 {[%clk 0:01:45.4]} 34. Rb6 {[%clk 0:02:24.3]} 34... Ne1 {[%clk
0:01:23.7]} 35. Bf1 {[%clk 0:02:10.7]} 35... Bd7 {[%clk 0:01:03.1]} 36. Bxb5
{[%clk 0:02:03.1]} 36... Nf3+ {[%clk 0:01:03.5]} 37. Kg2 {[%clk 0:02:02.9]}
37... Ne1+ {[%clk 0:01:03.9]} 38. Kf1 {[%clk 0:02:02.9]} 38... Bxh3+ {[%clk
0:01:03.6]} 39. Kf2 {[%clk 0:01:55.4]} 39... Rc8 {[%clk 0:00:36.7]} 40. Kxe1
{[%clk 0:01:53.7]} 40... g5 {[%clk 0:00:37.9]} 41. Bxg5 {[%clk 0:01:51.5]} 41...
Kg7 {[%clk 0:00:38.7]} 42. Bc4 {[%clk 0:01:51.2]} 42... Re8+ {[%clk 0:00:37]}
43. Kd2 {[%clk 0:01:51.4]} 43... Re4 {[%clk 0:00:29.4]} 44. Bf6+ {[%clk
0:01:52.2]} 44... Kh6 {[%clk 0:00:30.6]} 45. d6 {[%clk 0:01:51.4]} 45... Bd7
{[%clk 0:00:21.5]} 46. Bxf7 {[%clk 0:01:48.5]} 46... Rg4 {[%clk 0:00:21.1]} 47.
Be5 {[%clk 0:01:47.7]} 47... Re4 {[%clk 0:00:21.3]} 48. Bf4+ {[%clk 0:01:48.7]}
48... Kg7 {[%clk 0:00:22.8]} 49. Bc4 {[%clk 0:01:48.1]} 49... Rd4+ {[%clk
0:00:23.3]} 50. Kc3 {[%clk 0:01:48.9]} 50... Rd1 {[%clk 0:00:24.8]} 51. Rb7
{[%clk 0:01:50]} 51... Kf6 {[%clk 0:00:24.5]} 52. Rxd7 {[%clk 0:01:50.4]} 52...
Rc1+ {[%clk 0:00:26.1]} 53. Kb4 {[%clk 0:01:51.2]} 53... Rd1 {[%clk 0:00:27.3]}
54. Rf7+ {[%clk 0:01:52.1]} 54... Kg6 {[%clk 0:00:27.8]} 55. d7 {[%clk
0:01:53.4]} 55... Rd5 {[%clk 0:00:18.4]} 56. Bxd5 {[%clk 0:01:52.8]} 56... Kh5
{[%clk 0:00:20.3]} 57. d8=Q {[%clk 0:01:52.7]} 57... Kg4 {[%clk 0:00:22.1]} 58.
Qg5+ {[%clk 0:01:53.2]} 58... Kh3 {[%clk 0:00:24]} 59. Rh7# {[%clk 0:01:54.3]}
1-0

[Event "*** Titled Tuesday 3|2 Blitz"]
[Site "Chess.com"]
[Date "2017.06.06"]
[Round "2"]
[White "H16"]
[Black "RitvarsReimanis"]
[Result "1-0"]
[WhiteElo "2277"]
[BlackElo "2403"]
[TimeControl "180+2"]
[EndTime "14:12:15 PDT"]
[Termination "H16 won by resignation"]

1. d4 {[%clk 0:03:02]} 1... Nf6 {[%clk 0:03:00.6]} 2. c4 {[%clk 0:03:02.9]} 2...
e6 {[%clk 0:03:00.7]} 3. Nf3 {[%clk 0:03:04.2]} 3... d5 {[%clk 0:03:01.3]} 4.
Nc3 {[%clk 0:03:04.9]} 4... Bb4 {[%clk 0:03:01.2]} 5. cxd5 {[%clk 0:03:04.4]}
5... exd5 {[%clk 0:02:58.6]} 6. Bg5 {[%clk 0:03:05.2]} 6... O-O {[%clk
0:02:58.5]} 7. e3 {[%clk 0:03:06.5]} 7... c6 {[%clk 0:02:57.9]} 8. Bd3 {[%clk
0:03:06.8]} 8... Re8 {[%clk 0:02:56]} 9. h3 {[%clk 0:03:01.9]} 9... Nbd7 {[%clk
0:02:53]} 10. O-O {[%clk 0:03:02.7]} 10... Bd6 {[%clk 0:02:54]} 11. Qc2 {[%clk
0:02:54.4]} 11... h6 {[%clk 0:02:54.8]} 12. Bf4 {[%clk 0:02:55.4]} 12... Bxf4
{[%clk 0:02:55.1]} 13. exf4 {[%clk 0:02:57.3]} 13... Nf8 {[%clk 0:02:45.9]} 14.
f5 {[%clk 0:02:44.8]} 14... Qd6 {[%clk 0:02:23.2]} 15. Rfe1 {[%clk 0:02:45.1]}
15... Rxe1+ {[%clk 0:02:03.8]} 16. Rxe1 {[%clk 0:02:45.5]} 16... Bd7 {[%clk
0:02:04]} 17. Ne5 {[%clk 0:02:18.5]} 17... Qb4 {[%clk 0:01:57.5]} 18. Nf3 {[%clk
0:02:01.1]} 18... Re8 {[%clk 0:01:34.2]} 19. Re5 {[%clk 0:02:01.1]} 19... Bc8
{[%clk 0:01:10.3]} 20. a3 {[%clk 0:02:02]} 20... Qd6 {[%clk 0:01:09.7]} 21. Qe2
{[%clk 0:02:01.8]} 21... Bd7 {[%clk 0:01:06.4]} 22. g4 {[%clk 0:01:55.6]} 22...
b6 {[%clk 0:01:02.8]} 23. Rxe8 {[%clk 0:01:06.3]} 23... Nxe8 {[%clk 0:01:01.1]}
24. Ne5 {[%clk 0:01:07.9]} 24... f6 {[%clk 0:00:57.7]} 25. Nf3 {[%clk
0:00:59.5]} 25... Kf7 {[%clk 0:00:56.6]} 26. Qd2 {[%clk 0:00:49.9]} 26... Qe7
{[%clk 0:00:55.4]} 27. h4 {[%clk 0:00:50.1]} 27... Qd6 {[%clk 0:00:51.2]} 28. b4
{[%clk 0:00:50.8]} 28... Nc7 {[%clk 0:00:43.6]} 29. Ne2 {[%clk 0:00:49.9]} 29...
Bc8 {[%clk 0:00:33]} 30. g5 {[%clk 0:00:50.6]} 30... hxg5 {[%clk 0:00:33.1]} 31.
hxg5 {[%clk 0:00:52.5]} 31... Ba6 {[%clk 0:00:29.3]} 32. Bxa6 {[%clk 0:00:40.5]}
32... Nxa6 {[%clk 0:00:31.2]} 33. Nf4 {[%clk 0:00:30.8]} 33... Nc7 {[%clk
0:00:27.7]} 34. Qe3 {[%clk 0:00:28.5]} 34... Nb5 {[%clk 0:00:27.7]} 35. Nh5
{[%clk 0:00:27.9]} 35... fxg5 {[%clk 0:00:20.9]} 36. Nxg5+ {[%clk 0:00:27.6]}
36... Kg8 {[%clk 0:00:22.3]} 37. Qe8 {[%clk 0:00:14.8]} 37... Nc7 {[%clk
0:00:20.5]} 38. Qc8 {[%clk 0:00:12.2]} 38... Qf6 {[%clk 0:00:20.3]} 39. Nxf6+
{[%clk 0:00:12.6]} 1-0

[Event "*** Titled Tuesday 3|2 Blitz"]
[Site "Chess.com"]
[Date "2017.06.06"]
[Round "2"]
[White "wonderfultime"]
[Black "pKiLz5Rn9b"]
[Result "1-0"]
[WhiteElo "2644"]
[BlackElo "2490"]
[TimeControl "180+2"]
[EndTime "14:12:23 PDT"]
[Termination "wonderfultime won by resignation"]

1. d4 {[%clk 0:03:01.9]} 1... Nf6 {[%clk 0:03:00.6]} 2. c4 {[%clk 0:03:01.3]}
2... e6 {[%clk 0:03:01.7]} 3. Nc3 {[%clk 0:03:02.3]} 3... Bb4 {[%clk 0:03:02.2]}
4. e3 {[%clk 0:03:03.7]} 4... O-O {[%clk 0:03:02.7]} 5. Ne2 {[%clk 0:03:04.7]}
5... d5 {[%clk 0:02:57.3]} 6. a3 {[%clk 0:03:05.2]} 6... Be7 {[%clk 0:02:56.3]}
7. cxd5 {[%clk 0:02:57.9]} 7... exd5 {[%clk 0:02:55.4]} 8. Nf4 {[%clk 0:02:59]}
8... c6 {[%clk 0:02:52]} 9. Bd3 {[%clk 0:03:00]} 9... Bd6 {[%clk 0:02:51.9]} 10.
O-O {[%clk 0:03:00.1]} 10... Re8 {[%clk 0:02:46]} 11. f3 {[%clk 0:02:54.5]}
11... c5 {[%clk 0:02:38.5]} 12. Kh1 {[%clk 0:02:45.3]} 12... Bxf4 {[%clk
0:02:26.1]} 13. exf4 {[%clk 0:02:40.2]} 13... c4 {[%clk 0:02:25.6]} 14. Bc2
{[%clk 0:02:39.9]} 14... Nc6 {[%clk 0:02:21.9]} 15. g4 {[%clk 0:02:21.1]} 15...
Qb6 {[%clk 0:01:39.2]} 16. g5 {[%clk 0:01:56.5]} 16... Nh5 {[%clk 0:01:39]} 17.
Nxd5 {[%clk 0:01:54.7]} 17... Qxd4 {[%clk 0:01:39]} 18. Be3 {[%clk 0:00:46.3]}
18... Rxe3 {[%clk 0:00:58.2]} 19. Qxd4 {[%clk 0:00:41.7]} 19... Nxd4 {[%clk
0:01:00.1]} 20. Nxe3 {[%clk 0:00:43]} 20... Nxc2 {[%clk 0:01:01.1]} 21. Nxc2
{[%clk 0:00:43.7]} 21... Nxf4 {[%clk 0:01:02.7]} 22. Rfe1 {[%clk 0:00:31.9]}
22... Bf5 {[%clk 0:00:55.4]} 23. Nd4 {[%clk 0:00:32.5]} 23... Bg6 {[%clk
0:00:54.4]} 24. Re7 {[%clk 0:00:30.8]} 24... h6 {[%clk 0:00:32.1]} 25. gxh6
{[%clk 0:00:26.1]} 25... Rd8 {[%clk 0:00:30.8]} 26. Ne2 {[%clk 0:00:20.2]} 26...
Kf8 {[%clk 0:00:21.3]} 27. Re3 {[%clk 0:00:12.9]} 27... Nd3 {[%clk 0:00:19.9]}
28. hxg7+ {[%clk 0:00:13]} 28... Kxg7 {[%clk 0:00:21.1]} 29. Rg1 {[%clk
0:00:10.4]} 29... Kf6 {[%clk 0:00:19.5]} 30. Nc3 {[%clk 0:00:10.3]} 30... Nxb2
{[%clk 0:00:19]} 31. Ne4+ {[%clk 0:00:11.5]} 31... Bxe4 {[%clk 0:00:19.4]} 32.
Rxe4 {[%clk 0:00:13.1]} 32... b5 {[%clk 0:00:19.9]} 33. Rf4+ {[%clk 0:00:14.4]}
33... Ke5 {[%clk 0:00:17.7]} 34. Rxf7 {[%clk 0:00:15]} 34... Nd3 {[%clk
0:00:19]} 35. f4+ {[%clk 0:00:15.8]} 35... Kd4 {[%clk 0:00:19.4]} 36. f5 {[%clk
0:00:16]} 36... c3 {[%clk 0:00:20.5]} 37. Rc7 {[%clk 0:00:16.6]} 37... Nf2+
{[%clk 0:00:14.7]} 38. Kg2 {[%clk 0:00:17.6]} 38... Ng4 {[%clk 0:00:15.6]} 39.
Rd1+ {[%clk 0:00:18.3]} 1-0

[Event "*** Titled Tuesday 3|2 Blitz"]
[Site "Chess.com"]
[Date "2017.06.06"]
[Round "2"]
[White "Zufi1811"]
[Black "josiwales"]
[Result "1-0"]
[WhiteElo "2354"]
[BlackElo "2323"]
[TimeControl "180+2"]
[EndTime "14:12:24 PDT"]
[Termination "Zufi1811 won by resignation"]

1. e4 {[%clk 0:03:02]} 1... c5 {[%clk 0:02:59.7]} 2. Nf3 {[%clk 0:03:03.3]} 2...
Nc6 {[%clk 0:03:01.1]} 3. Bb5 {[%clk 0:03:02.2]} 3... Na5 {[%clk 0:03:01.5]} 4.
O-O {[%clk 0:03:02.4]} 4... a6 {[%clk 0:03:02.9]} 5. Be2 {[%clk 0:03:03.3]} 5...
b5 {[%clk 0:03:04.4]} 6. d4 {[%clk 0:02:58.1]} 6... e6 {[%clk 0:03:04.7]} 7. a4
{[%clk 0:02:54.1]} 7... b4 {[%clk 0:03:04.6]} 8. d5 {[%clk 0:02:53.4]} 8... d6
{[%clk 0:03:03.9]} 9. c4 {[%clk 0:02:53.9]} 9... e5 {[%clk 0:03:02.7]} 10. b3
{[%clk 0:02:54]} 10... f5 {[%clk 0:03:01.5]} 11. Ng5 {[%clk 0:02:49.8]} 11... f4
{[%clk 0:03:00.1]} 12. Ne6 {[%clk 0:02:46.9]} 12... Bxe6 {[%clk 0:03:00.5]} 13.
dxe6 {[%clk 0:02:48.8]} 13... Nf6 {[%clk 0:03:01.7]} 14. g3 {[%clk 0:02:39.4]}
14... g5 {[%clk 0:02:54.3]} 15. Bh5+ {[%clk 0:02:38.2]} 15... Ke7 {[%clk
0:02:55.2]} 16. Bf7 {[%clk 0:02:36.6]} 16... h5 {[%clk 0:02:49.2]} 17. Nd2
{[%clk 0:02:35.7]} 17... Nc6 {[%clk 0:02:43.3]} 18. Bb2 {[%clk 0:02:35.2]} 18...
h4 {[%clk 0:02:34.5]} 19. gxf4 {[%clk 0:02:33.9]} 19... gxf4 {[%clk 0:02:34.7]}
20. Kh1 {[%clk 0:02:35.3]} 20... Qc7 {[%clk 0:02:20.1]} 21. Nf3 {[%clk
0:02:28.6]} 21... Nxe4 {[%clk 0:02:13]} 22. Qe2 {[%clk 0:02:13.6]} 22... Nf6
{[%clk 0:02:12.2]} 23. Rad1 {[%clk 0:02:13.8]} 23... Nd8 {[%clk 0:02:07.5]} 24.
Nxe5 {[%clk 0:02:01.5]} 24... dxe5 {[%clk 0:02:06.1]} 25. Bxe5 {[%clk
0:02:03.4]} 25... Qb7+ {[%clk 0:02:06.5]} 26. f3 {[%clk 0:02:04.8]} 26... Nxf7
{[%clk 0:01:52.2]} 27. Bxf6+ {[%clk 0:02:00.5]} 27... Kxf6 {[%clk 0:01:52]} 28.
Rd7 {[%clk 0:02:01.7]} 28... Qxd7 {[%clk 0:01:18.6]} 29. exd7 {[%clk 0:02:03.6]}
29... Bd6 {[%clk 0:01:15.6]} 30. Qe4 {[%clk 0:01:39.7]} 30... Rhg8 {[%clk
0:01:04.3]} 31. Re1 {[%clk 0:01:34.3]} 31... Be5 {[%clk 0:00:19.8]} 32. Qc6+
{[%clk 0:01:31.2]} 32... Kf5 {[%clk 0:00:21]} 33. Qxc5 {[%clk 0:01:15.1]} 33...
Rad8 {[%clk 0:00:20.9]} 34. Qd5 {[%clk 0:01:12.2]} 34... Kf6 {[%clk 0:00:20.6]}
35. c5 {[%clk 0:01:12.7]} 35... Rg5 {[%clk 0:00:13.7]} 36. c6 {[%clk 0:01:11.9]}
36... Bc7 {[%clk 0:00:12.9]} 37. Qe6+ {[%clk 0:01:01.8]} 37... Kg7 {[%clk
0:00:13]} 38. Rg1 {[%clk 0:01:00]} 38... Rxg1+ {[%clk 0:00:12]} 39. Kxg1 {[%clk
0:01:01.9]} 39... Ne5 {[%clk 0:00:13.9]} 40. Kf2 {[%clk 0:00:59.9]} 40... Bb6+
{[%clk 0:00:14]} 41. Ke2 {[%clk 0:01:00.5]} 41... Bc7 {[%clk 0:00:15.1]} 42.
Qe7+ {[%clk 0:00:46.6]} 42... Kg6 {[%clk 0:00:16]} 43. Qxb4 {[%clk 0:00:45.3]}
43... Nxc6 {[%clk 0:00:16.5]} 44. Qe4+ {[%clk 0:00:45.9]} 44... Kf7 {[%clk
0:00:15.4]} 45. Qxc6 {[%clk 0:00:47.8]} 45... Ke7 {[%clk 0:00:17.1]} 46. Qxc7
{[%clk 0:00:47.8]} 46... Rxd7 {[%clk 0:00:19]} 1-0

[Event "*** Titled Tuesday 3|2 Blitz"]
[Site "Chess.com"]
[Date "2017.06.06"]
[Round "2"]
[White "hermionegrangermagic"]
[Black "IMRosen"]
[Result "0-1"]
[WhiteElo "2364"]
[BlackElo "2230"]
[TimeControl "180+2"]
[EndTime "14:12:25 PDT"]
[Termination "IMRosen won by resignation"]

1. d4 {[%clk 0:03:02]} 1... Nf6 {[%clk 0:02:59.6]} 2. c4 {[%clk 0:03:02.6]} 2...
e5 {[%clk 0:03:01.1]} 3. dxe5 {[%clk 0:03:02.7]} 3... Ng4 {[%clk 0:03:02.7]} 4.
Bf4 {[%clk 0:03:01.6]} 4... Bb4+ {[%clk 0:03:04]} 5. Nd2 {[%clk 0:03:01.6]} 5...
d6 {[%clk 0:03:05.5]} 6. exd6 {[%clk 0:02:54.8]} 6... Qf6 {[%clk 0:03:06.2]} 7.
e3 {[%clk 0:02:18.9]} 7... g5 {[%clk 0:03:06.4]} 8. Bg3 {[%clk 0:02:07.3]} 8...
h5 {[%clk 0:03:07.7]} 9. h3 {[%clk 0:01:00.6]} 9... h4 {[%clk 0:03:08.8]} 10.
hxg4 {[%clk 0:00:57.6]} 10... hxg3 {[%clk 0:03:10]} 11. Rxh8+ {[%clk 0:00:57.4]}
11... Qxh8 {[%clk 0:03:11.9]} 12. dxc7 {[%clk 0:00:54.7]} 12... Nc6 {[%clk
0:03:07.2]} 13. a3 {[%clk 0:00:48]} 13... gxf2+ {[%clk 0:01:48.4]} 14. Kxf2
{[%clk 0:00:47.2]} 14... Qh4+ {[%clk 0:01:50]} 15. g3 {[%clk 0:00:22.8]} 15...
Qh2+ {[%clk 0:01:50.9]} 16. Bg2 {[%clk 0:00:23.8]} 16... Ne5 {[%clk 0:01:13]}
17. Qa4+ {[%clk 0:00:24.1]} 17... Bd7 {[%clk 0:01:08.3]} 18. Qxb4 {[%clk
0:00:24.8]} 18... Nd3+ {[%clk 0:01:09]} 19. Kf1 {[%clk 0:00:18.6]} 19... Nxb4
{[%clk 0:01:05.1]} 20. axb4 {[%clk 0:00:19.4]} 20... Bc6 {[%clk 0:00:54.2]} 21.
Ne4 {[%clk 0:00:17]} 21... Bxe4 {[%clk 0:00:45.7]} 22. Bxe4 {[%clk 0:00:17.3]}
22... Qxb2 {[%clk 0:00:34.9]} 23. Rd1 {[%clk 0:00:16.2]} 23... Rc8 {[%clk
0:00:33.3]} 24. Nf3 {[%clk 0:00:12.1]} 24... Qb3 {[%clk 0:00:30.1]} 25. Rd3
{[%clk 0:00:08.7]} 25... Qxc4 {[%clk 0:00:27]} 26. Bf5 {[%clk 0:00:08.9]} 26...
Rxc7 {[%clk 0:00:26.2]} 27. Ne5 {[%clk 0:00:08.9]} 27... Qxb4 {[%clk 0:00:25.1]}
28. Nd7 {[%clk 0:00:08.2]} 28... Qb5 {[%clk 0:00:21.5]} 29. Nf6+ {[%clk
0:00:07.7]} 29... Kf8 {[%clk 0:00:22.4]} 30. Kf2 {[%clk 0:00:08.9]} 30... Rc2+
{[%clk 0:00:23.2]} 31. Kf3 {[%clk 0:00:10.1]} 31... Qc6+ {[%clk 0:00:23.4]} 32.
Ne4 {[%clk 0:00:10.9]} 32... Rc1 {[%clk 0:00:22.7]} 33. Rd8+ {[%clk 0:00:10.9]}
33... Ke7 {[%clk 0:00:23]} 34. Rd7+ {[%clk 0:00:11.6]} 34... Qxd7 {[%clk
0:00:23.2]} 35. Bxd7 {[%clk 0:00:12.4]} 35... Kxd7 {[%clk 0:00:25.1]} 36. Nxg5
{[%clk 0:00:13.5]} 36... a5 {[%clk 0:00:26.6]} 37. Nxf7 {[%clk 0:00:14.7]} 37...
Rf1+ {[%clk 0:00:27.7]} 38. Ke4 {[%clk 0:00:15.1]} 38... Rxf7 {[%clk 0:00:29.6]}
0-1